fUST/lending_fUST_20250516
["ID","MTS","AMOUNT","RATE_DAILY","PERIOD"]
[361222932,1747358192409,-274.6360475,0.00012747,2]
[361222933,1747358198066,-248.55865123,0.00012747,2]
[361222934,1747358201408,-271.01813992,0.00012747,2]
[361222935,1747358202859,-228.98186008,0.00012747,2]
[361222936,1747358204870,-279.79451778,0.00012747,2]
[361222937,1747358207011,-220.20548222,0.00012747,2]
[361222938,1747358211666,-224.59105882,0.00012747,2]
[361222939,1747358213202,-422.33179478,0.00012747,2]
[361222940,1747358214797,-230.9036542,0.00012747,2]
[361222941,1747358216897,-224.13271885,0.00012747,2]
[361222942,1747358218406,-283.46536939,0.00012747,2]
[361222943,1747358221101,-184.15549261,0.00012747,2]
[361222944,1747358221382,2500.157,0.00027397,120]
[361222945,1747358223138,-198.84443814,0.00012747,2]
[361222946,1747358229243,-307.06858814,0.00012747,2]
[361222947,1747358230725,-235.78575013,0.00012747,2]
[361222948,1747358313926,-342.72084089,0.00012747,2]
[361222950,1747358316674,-167.55797143,0.00012747,2]
[361222951,1747358319998,-292.48014679,0.00012747,2]
[361222952,1747358322628,-234.5840292,0.00012747,2]
[361222953,1747358346412,-460.06463752,0.00012747,2]
[361222954,1747358348716,-329.92664359,0.00012747,2]
[361222955,1747358350848,-170.07335641,0.00012747,2]
[361222956,1747358352543,-327.5457519,0.00012747,2]
[361222957,1747358354872,-170.5166775,0.00012747,2]
[361222958,1747358357484,-282.03890805,0.00012747,2]
[361222959,1747358361461,-245.55683349,0.00012,2]
[361222960,1747358363537,-286.84952252,0.00012,2]
[361222961,1747358365787,-181.19864509,0.00012,2]
[361222962,1747358367366,-181.0,0.00012,2]
[361222963,1747358370203,-208.71843324,0.00012,2]
[361222964,1747358372319,-223.5143695,0.00012,2]
[361222965,1747358374890,-239.19050477,0.00012,2]
[361222966,1747358378705,-215.51499047,0.00012,2]
[361222967,1747358381398,-165.48684912,0.00012,2]
[361222968,1747358383135,-200.02633474,0.00012,2]
[361222969,1747358385342,-191.76733118,0.00012,2]
[361222970,1747358387874,-189.06289489,0.00012,2]
[361222971,1747358390484,-206.76423893,0.00012,2]
[361222972,1747358393488,-210.47024841,0.00012,2]
[361222973,1747358396240,-58.99517526,0.00012,2]
[361222981,1747358678583,499.999999,0.00027575,30]
[361222995,1747358908982,500.0,0.00027576,120]
[361223015,1747359031854,-300.0,0.00012641,2]
[361223016,1747359031864,-1200.0,0.00012641,2]
[361223017,1747359031873,-24900.0,0.00012642,2]
[361223018,1747359031882,-229.9041225,0.00012798,2]
[361223019,1747359031891,-294.87079773,0.00013587,2]
[361223020,1747359031900,-643.48966607,0.00013643,2]
[361223021,1747359031909,-500.0,0.00013687,2]
[361223022,1747359031918,-500.0,0.00013687,2]
[361223023,1747359031927,-500.0,0.00013687,2]
[361223024,1747359031936,-500.0,0.00013687,2]
[361223025,1747359031945,-500.0,0.00013687,2]
[361223026,1747359031955,-211.46472849,0.00013687,2]
[361223027,1747359031964,-500.0,0.00013687,2]
[361223028,1747359031972,-437.76434358,0.00013687,2]
[361223029,1747359031981,-500.0,0.00013687,2]
[361223030,1747359031990,-500.0,0.00013687,2]
[361223031,1747359031999,-500.0,0.00013687,2]
[361223032,1747359032008,-647.57236779,0.00013687,2]
[361223033,1747359032017,-500.0,0.00013687,2]
[361223035,1747359032026,-500.0,0.00013687,2]
[361223036,1747359032035,-500.0,0.00013687,2]
[361223038,1747359032044,-500.0,0.00013687,2]
[361223040,1747359032053,-500.0,0.00013687,2]
[361223042,1747359032062,-500.0,0.00013687,2]
[361223044,1747359032072,-500.0,0.00013687,2]
[361223046,1747359032080,-500.0,0.00013687,2]
[361223048,1747359032089,-500.0,0.00013687,2]
[361223050,1747359032099,-500.0,0.00013687,2]
[361223052,1747359032108,-500.0,0.00013687,2]
[361223054,1747359032117,-500.0,0.00013687,2]
[361223056,1747359032126,-500.0,0.00013687,2]
[361223058,1747359032135,-500.0,0.00013687,2]
[361223060,1747359032144,-500.0,0.00013687,2]
[361223062,1747359032153,-500.0,0.00013687,2]
[361223064,1747359032162,-500.0,0.00013687,2]
[361223067,1747359032171,-500.0,0.00013687,2]
[361223069,1747359032180,-500.0,0.00013687,2]
[361223071,1747359032189,-500.0,0.00013687,2]
[361223073,1747359032199,-500.0,0.00013687,2]
[361223075,1747359032208,-500.0,0.00013687,2]
[361223077,1747359032217,-500.0,0.00013687,2]
[361223079,1747359032226,-500.0,0.00013687,2]
[361223081,1747359032236,-500.0,0.00013687,2]
[361223083,1747359032245,-500.0,0.00013687,2]
[361223085,1747359032254,-500.0,0.00013687,2]
[361223087,1747359032263,-500.0,0.00013687,2]
[361223089,1747359032272,-500.0,0.00013687,2]
[361223091,1747359032281,-500.0,0.00013687,2]
[361223093,1747359032290,-500.0,0.00013687,2]
[361223095,1747359032299,-82.11180783,0.00013687,2]
[361223097,1747359032315,-417.88819217,0.00013687,2]
[361223099,1747359032324,-500.0,0.00013687,2]
[361223101,1747359032333,-500.0,0.00013687,2]
[361223103,1747359032342,-500.0,0.00013687,2]
[361223105,1747359032351,-500.0,0.00013687,2]
[361223107,1747359032360,-500.0,0.00013687,2]
[361223109,1747359032370,-500.0,0.00013687,2]
[361223111,1747359032379,-500.0,0.00013687,2]
[361223113,1747359032388,-500.0,0.00013687,2]
[361223115,1747359032401,-207.09483583,0.00013687,2]
[361223221,1747359040802,-74.28213999,0.00012329,2]
[361223236,1747359047512,507.83240495,0.00027576,30]
[361223241,1747359141484,160.0,0.00027576,30]
[361223244,1747359159107,500.0,0.00027576,30]
[361223251,1747359215280,500.0,0.00027576,30]
[361223252,1747359272926,500.0,0.00027576,30]
[361223258,1747359413644,500.0,0.00027574,30]
[361223262,1747359468693,500.0,0.00027574,30]
[361223264,1747359536733,500.0,0.00027574,30]
[361223282,1747359683086,500.0,0.00027582,30]
[361223283,1747359738580,500.0,0.00027582,30]
[361223307,1747360076965,-241.59257698,0.00011325,2]
[361223308,1747360078455,-354.82266376,0.00011325,2]
[361223309,1747360080498,-180.03912739,0.00011325,2]
[361223310,1747360082546,-157.83918439,0.00011325,2]
[361223311,1747360085158,-225.0357138,0.00011324,2]
[361223312,1747360087351,-74.9642862,0.00011324,2]
[361223313,1747360087376,-160.53696874,0.00011325,2]
[361223314,1747360089133,-222.73251824,0.00011325,2]
[361223315,1747360091354,-516.29617905,0.00011325,2]
[361223316,1747360093007,-173.94630546,0.00011325,2]
[361223317,1747360096233,-179.23776153,0.00011325,2]
[361223318,1747360097809,-323.76223847,0.00011325,2]
[361223319,1747360100346,-246.59637813,0.00011325,2]
[361223320,1747360104700,-273.98579963,0.00011325,2]
[361223321,1747360105330,160.0,0.00027397,120]
[361223322,1747360106535,-202.98257043,0.00011325,2]
[361223323,1747360108455,-206.21698277,0.00011325,2]
[361223324,1747360111407,-300.0,0.00011325,2]
[361223325,1747360114319,-303.41701588,0.00011325,2]
[361223326,1747360115848,-155.0,0.00011325,2]
[361223327,1747360116208,500.0,0.00027585,30]
[361223328,1747360118716,-175.45118724,0.00011325,2]
[361223329,1747360121230,-421.5458782,0.00011325,2]
[361223330,1747360122776,-164.83253891,0.00011325,2]
[361223331,1747360124439,-255.58225956,0.00011325,2]
[361223332,1747360128050,-249.60773957,0.00011325,2]
[361223333,1747360136550,-229.0914388,0.00011325,2]
[361223334,1747360139329,-321.34927072,0.00011325,2]
[361223335,1747360142048,-190.84214183,0.00011325,2]
[361223336,1747360146134,-155.48722296,0.00011325,2]
[361223337,1747360147829,-565.99779108,0.00011325,2]
[361223338,1747360149512,-230.28736801,0.00011325,2]
[361223339,1747360153098,-153.54201891,0.00011325,2]
[361223347,1747360156037,-300.0,0.00011325,2]
[361223348,1747360158168,-169.29430149,0.00011325,2]
[361223349,1747360160790,-380.70569851,0.00011325,2]
[361223350,1747360163328,-285.90165442,0.00011325,2]
[361223351,1747360166089,-277.58125823,0.00011325,2]
[361223352,1747360169441,-200.06862657,0.00011325,2]
[361223353,1747360172735,-230.23822979,0.00011325,2]
[361223354,1747360176470,-269.76177021,0.00011325,2]
[361223355,1747360180377,-423.78892841,0.00011325,2]
[361223356,1747360181909,-213.89203109,0.00011325,2]
[361223357,1747360183965,-243.10366515,0.00011325,2]
[361223358,1747360190239,-195.21107159,0.00011325,2]
[361223359,1747360193125,-300.0,0.00011325,2]
[361223360,1747360193844,409.0,0.00027397,120]
[361223361,1747360195218,-210.60010565,0.00011325,2]
[361223362,1747360196845,-401.53356265,0.00011325,2]
[361223466,1747360241069,-59.0181504,0.00011325,2]
[361223471,1747360246152,-2373.3094123,0.00011325,2]
[361223472,1747360246162,-300.0,0.00012129,2]
[361223473,1747360246171,-1200.0,0.00012129,2]
[361223474,1747360246180,-7082.0,0.0001213,2]
[361223475,1747360246190,-250.0,0.0001213,2]
[361223476,1747360246199,-500.0,0.00012321,2]
[361223477,1747360246208,-167.08072969,0.00012321,2]
[361223478,1747360246218,-500.0,0.00012321,2]
[361223479,1747360246227,-341.58341976,0.00012321,2]
[361223480,1747360246238,-500.0,0.00012321,2]
[361223481,1747360246250,-500.0,0.00012321,2]
[361223482,1747360246259,-166.02704242,0.00012321,2]
[361223483,1747360246268,-500.0,0.00012321,2]
[361223484,1747360246277,-500.0,0.00012321,2]
[361223485,1747360246287,-500.0,0.00012321,2]
[361223486,1747360246296,-500.0,0.00012321,2]
[361223487,1747360246305,-500.0,0.00012321,2]
[361223488,1747360246314,-500.0,0.00012321,2]
[361223489,1747360246323,-214.18236008,0.00012321,2]
[361223490,1747360246335,-28.15274017,0.00012321,2]
[361223491,1747360246343,-500.0,0.00012321,2]
[361223492,1747360246353,-500.0,0.00012321,2]
[361223493,1747360246361,-500.0,0.00012321,2]
[361223494,1747360246370,-500.0,0.00012321,2]
[361223495,1747360246380,-500.0,0.00012321,2]
[361223496,1747360246388,-500.0,0.00012321,2]
[361223497,1747360246398,-500.0,0.00012321,2]
[361223498,1747360246407,-466.55385427,0.00012321,2]
[361223499,1747360246416,-500.0,0.00012321,2]
[361223500,1747360246426,-500.0,0.00012321,2]
[361223501,1747360246436,-500.0,0.00012321,2]
[361223502,1747360246445,-500.0,0.00012321,2]
[361223503,1747360246454,-500.0,0.00012321,2]
[361223504,1747360246464,-500.0,0.00012321,2]
[361223505,1747360246473,-500.0,0.00012321,2]
[361223506,1747360246483,-500.0,0.00012321,2]
[361223507,1747360246493,-500.0,0.00012321,2]
[361223508,1747360246502,-500.0,0.00012321,2]
[361223509,1747360246708,-500.0,0.00012321,2]
[361223510,1747360246717,-500.0,0.00012321,2]
[361223511,1747360246727,-500.0,0.00012321,2]
[361223512,1747360246739,-500.0,0.00012321,2]
[361223513,1747360246748,-500.0,0.00012321,2]
[361223514,1747360246758,-500.0,0.00012321,2]
[361223515,1747360246767,-500.0,0.00012321,2]
[361223516,1747360246776,-500.0,0.00012321,2]
[361223517,1747360246785,-500.0,0.00012321,2]
[361223518,1747360246794,-500.0,0.00012321,2]
[361223519,1747360246804,-500.0,0.00012321,2]
[361223520,1747360246813,-500.0,0.00012321,2]
[361223521,1747360246822,-500.0,0.00012321,2]
[361223522,1747360246832,-500.0,0.00012321,2]
[361223523,1747360246841,-500.0,0.00012321,2]
[361223524,1747360246850,-164.50964556,0.00012321,2]
[361223525,1747360246859,-500.0,0.00012321,2]
[361223526,1747360246869,-500.0,0.00012321,2]
[361223527,1747360246878,-500.0,0.00012321,2]
[361223528,1747360246887,-500.0,0.00012321,2]
[361223529,1747360246896,-500.0,0.00012321,2]
[361223530,1747360246906,-500.0,0.00012321,2]
[361223531,1747360246915,-252.30830563,0.00012321,2]
[361223532,1747360246924,-500.0,0.00012321,2]
[361223533,1747360246933,-500.0,0.00012321,2]
[361223534,1747360246943,-500.0,0.00012321,2]
[361223535,1747360246954,-500.0,0.00012321,2]
[361223536,1747360246965,-500.0,0.00012321,2]
[361223537,1747360246973,-500.0,0.00012321,2]
[361223538,1747360246986,-500.0,0.00012321,2]
[361223539,1747360246995,-500.0,0.00012321,2]
[361223540,1747360247005,-500.0,0.00012321,2]
[361223541,1747360247014,-33945.58904634,0.00012322,2]
[361223542,1747360247026,-16054.41095366,0.00012322,2]
[361223543,1747360247036,-2360.37,0.00012329,2]
[361223544,1747360247047,-2093.95,0.00012329,2]
[361223545,1747360247056,-999.06146973,0.0001235,2]
[361223546,1747360247066,-354.2543822,0.00012435,2]
[361223547,1747360247076,-250.0,0.0001263,2]
[361223548,1747360247085,-233.25651899,0.00012958,2]
[361223549,1747360247094,-420.0,0.00013313,2]
[361223550,1747360247103,-518.0,0.00013342,2]
[361223551,1747360247113,-179.2456987,0.000134,2]
[361223552,1747360247122,-500.0,0.00013697,2]
[361223553,1747360247132,-500.0,0.00013697,2]
[361223554,1747360247141,-500.0,0.00013697,2]
[361223555,1747360247150,-500.0,0.00013697,2]
[361223556,1747360247159,-500.0,0.00013697,2]
[361223557,1747360247169,-500.0,0.00013697,2]
[361223558,1747360247178,-500.0,0.00013697,2]
[361223559,1747360247187,-500.0,0.00013697,2]
[361223560,1747360247196,-250.55355527,0.00013697,2]
[361223561,1747360247206,-423.49893931,0.00013697,2]
[361223562,1747360247215,-500.0,0.00013697,2]
[361223563,1747360247223,-500.0,0.00013697,2]
[361223564,1747360247237,-151.0,0.00013698,2]
[361223565,1747360247246,-456.89618591,0.00013698,2]
[361223566,1747360247255,-450.0,0.00013698,2]
[361223567,1747360247265,-528.24,0.00013698,2]
[361223568,1747360247274,-330.06232875,0.00013698,2]
[361223569,1747360247284,-448.89915517,0.00013698,2]
[361223570,1747360247294,-223.20297288,0.00013698,2]
[361223571,1747360247304,-458.77352947,0.00013698,2]
[361223572,1747360247313,-450.0,0.00013698,2]
[361223573,1747360247323,-367.12357371,0.00013698,2]
[361223574,1747360247332,-334.00931917,0.00013698,2]
[361223575,1747360247341,-403.78609199,0.00013698,2]
[361223576,1747360247351,-353.50547955,0.00013698,2]
[361223577,1747360247360,-450.0,0.00013698,2]
[361223578,1747360247369,-263.81529528,0.00013698,2]
[361223579,1747360247379,-450.0,0.00013698,2]
[361223580,1747360247388,-450.0,0.00013698,2]
[361223581,1747360247398,-450.0,0.00013698,2]
[361223582,1747360247407,-233.46829901,0.00013698,2]
[361223583,1747360247417,-450.0,0.00013698,2]
[361223584,1747360247426,-404.87425838,0.00013698,2]
[361223585,1747360247435,-450.0,0.00013698,2]
[361223586,1747360247444,-450.0,0.00013698,2]
[361223587,1747360247454,-450.0,0.00013698,2]
[361223588,1747360247463,-450.0,0.00013698,2]
[361223589,1747360247473,-450.0,0.00013698,2]
[361223590,1747360247484,-450.0,0.00013698,2]
[361223591,1747360247493,-450.0,0.00013698,2]
[361223592,1747360247503,-450.0,0.00013698,2]
[361223593,1747360247513,-450.0,0.00013698,2]
[361223594,1747360247522,-450.0,0.00013698,2]
[361223595,1747360247532,-621.81,0.00013698,2]
[361223596,1747360247541,-401.01656264,0.00013698,2]
[361223597,1747360247550,-501.68361131,0.00013698,2]
[361223598,1747360247559,-450.0,0.00013698,2]
[361223599,1747360247568,-450.0,0.00013698,2]
[361223600,1747360247579,-206.15379473,0.00013698,2]
[361223601,1747360247588,-240.40003641,0.00013698,2]
[361223602,1747360267037,2574.02,0.00027397,120]
[361223617,1747360992191,-382.2530485,0.00011479,2]
[361223618,1747360992214,-250.0,0.0001225,2]
[361223619,1747360992236,-500.0,0.00012315,2]
[361223620,1747360992259,-311.92239167,0.00012315,2]
[361223621,1747360992282,-500.0,0.00012315,2]
[361223622,1747360992304,-500.0,0.00012315,2]
[361223623,1747360992329,-500.0,0.00012315,2]
[361223624,1747360992355,-500.0,0.00012315,2]
[361223625,1747360992379,-500.0,0.00012315,2]
[361223626,1747360992402,-500.0,0.00012315,2]
[361223627,1747360992628,-274.06153936,0.00012315,2]
[361223628,1747360992652,-500.0,0.00012315,2]
[361223629,1747360992675,-500.0,0.00012315,2]
[361223630,1747360992698,-500.0,0.00012315,2]
[361223631,1747360992721,-500.0,0.00012315,2]
[361223632,1747360992744,-500.0,0.00012315,2]
[361223633,1747360992768,-500.0,0.00012315,2]
[361223634,1747360992791,-500.0,0.00012315,2]
[361223635,1747360992814,-500.0,0.00012315,2]
[361223636,1747360992837,-500.0,0.00012315,2]
[361223637,1747360992863,-500.0,0.00012315,2]
[361223638,1747360992887,-626.58763948,0.00012315,2]
[361223639,1747360992910,-500.0,0.00012315,2]
[361223640,1747360992934,-500.0,0.00012315,2]
[361223641,1747360992958,-500.0,0.00012315,2]
[361223642,1747360992983,-500.0,0.00012315,2]
[361223643,1747360993007,-500.0,0.00012315,2]
[361223644,1747360993030,-500.0,0.00012315,2]
[361223645,1747360993053,-500.0,0.00012315,2]
[361223646,1747360993076,-500.0,0.00012315,2]
[361223647,1747360993101,-500.0,0.00012315,2]
[361223648,1747360993124,-500.0,0.00012315,2]
[361223649,1747360993148,-500.0,0.00012315,2]
[361223650,1747360993170,-500.0,0.00012315,2]
[361223651,1747360993192,-500.0,0.00012315,2]
[361223652,1747360993218,-500.0,0.00012315,2]
[361223653,1747360993241,-500.0,0.00012315,2]
[361223654,1747360993265,-500.0,0.00012315,2]
[361223655,1747360993288,-500.0,0.00012315,2]
[361223656,1747360993311,-500.0,0.00012315,2]
[361223657,1747360993337,-500.0,0.00012315,2]
[361223658,1747360993363,-500.0,0.00012315,2]
[361223659,1747360993386,-500.0,0.00012315,2]
[361223660,1747360993409,-500.0,0.00012315,2]
[361223661,1747360993433,-500.0,0.00012315,2]
[361223662,1747360993458,-500.0,0.00012315,2]
[361223663,1747360993483,-500.0,0.00012315,2]
[361223664,1747360993507,-500.0,0.00012315,2]
[361223665,1747360993530,-500.0,0.00012315,2]
[361223666,1747360993553,-500.0,0.00012315,2]
[361223667,1747360993576,-500.0,0.00012315,2]
[361223668,1747360993604,-500.0,0.00012315,2]
[361223669,1747360993627,-500.0,0.00012315,2]
[361223670,1747360993651,-500.0,0.00012315,2]
[361223671,1747360993674,-500.0,0.00012315,2]
[361223672,1747360993698,-500.0,0.00012315,2]
[361223673,1747360993721,-500.0,0.00012315,2]
[361223674,1747360993746,-500.0,0.00012315,2]
[361223675,1747360993770,-500.0,0.00012315,2]
[361223676,1747360993794,-500.0,0.00012315,2]
[361223677,1747360993818,-500.0,0.00012315,2]
[361223678,1747360993844,-500.0,0.00012315,2]
[361223679,1747360993869,-500.0,0.00012315,2]
[361223680,1747360993892,-2125.81107094,0.00012315,2]
[361223681,1747360993917,-500.0,0.00012315,2]
[361223682,1747360993941,-2125.81107094,0.00012315,2]
[361223683,1747360993965,-2125.81107094,0.00012315,2]
[361223684,1747360993989,-500.0,0.00012315,2]
[361223685,1747360994014,-2125.81107094,0.00012315,2]
[361223686,1747360994038,-500.0,0.00012315,2]
[361223687,1747360994061,-2125.81107094,0.00012315,2]
[361223688,1747360994084,-2125.81107094,0.00012315,2]
[361223689,1747360994109,-500.0,0.00012315,2]
[361223690,1747360994133,-2125.81107094,0.00012315,2]
[361223691,1747360994157,-2125.81107094,0.00012315,2]
[361223692,1747360994181,-500.0,0.00012315,2]
[361223693,1747360994205,-2125.81107094,0.00012315,2]
[361223694,1747360994228,-2125.81107094,0.00012315,2]
[361223695,1747360994251,-625.17640439,0.00012315,2]
[361223696,1747360994275,-2125.81107094,0.00012315,2]
[361223697,1747360994300,-2125.81107094,0.00012315,2]
[361223698,1747360994324,-520.26612532,0.00012315,2]
[361223710,1747361284087,403.22808369,0.00027611,30]
[361223781,1747361432886,-5713.5472246,0.00011406,2]
[361223782,1747361432896,-300.0,0.00011902,2]
[361223783,1747361432906,-6141.909723,0.00011903,2]
[361223784,1747361432991,-18758.090277,0.00011903,2]
[361223785,1747361433001,-500.0,0.00012311,2]
[361223786,1747361433011,-500.0,0.00012311,2]
[361223787,1747361433022,-168.34567416,0.00012311,2]
[361223788,1747361433031,-500.0,0.00012311,2]
[361223789,1747361433041,-599.35592454,0.00012311,2]
[361223790,1747361433052,-599.35592454,0.00012311,2]
[361223791,1747361433062,-472.4182271,0.00012311,2]
[361223792,1747361433072,-599.35592454,0.00012311,2]
[361223793,1747361433082,-599.35592454,0.00012311,2]
[361223794,1747361433092,-599.35592454,0.00012311,2]
[361223795,1747361433102,-599.35592454,0.00012311,2]
[361223796,1747361433112,-599.35592454,0.00012311,2]
[361223797,1747361433122,-599.35592454,0.00012311,2]
[361223799,1747361433132,-599.35592454,0.00012311,2]
[361223800,1747361433142,-599.35592454,0.00012311,2]
[361223801,1747361433152,-599.35592454,0.00012311,2]
[361223802,1747361433162,-599.35592454,0.00012311,2]
[361223803,1747361433171,-599.35592454,0.00012311,2]
[361223804,1747361433181,-599.35592454,0.00012311,2]
[361223805,1747361433191,-599.35592454,0.00012311,2]
[361223806,1747361433200,-599.35592454,0.00012311,2]
[361223807,1747361433210,-599.35592454,0.00012311,2]
[361223808,1747361433219,-599.35592454,0.00012311,2]
[361223809,1747361433228,-599.35592454,0.00012311,2]
[361223810,1747361433238,-599.35592454,0.00012311,2]
[361223811,1747361433247,-599.35592454,0.00012311,2]
[361223812,1747361433257,-599.35592454,0.00012311,2]
[361223813,1747361433266,-599.35592454,0.00012311,2]
[361223814,1747361433276,-599.35592454,0.00012311,2]
[361223815,1747361433286,-599.35592454,0.00012311,2]
[361223816,1747361433295,-599.35592454,0.00012311,2]
[361223817,1747361433304,-599.35592454,0.00012311,2]
[361223818,1747361433314,-599.35592454,0.00012311,2]
[361223819,1747361433323,-599.35592454,0.00012311,2]
[361223820,1747361433334,-599.35592454,0.00012311,2]
[361223821,1747361433346,-599.35592454,0.00012311,2]
[361223822,1747361433356,-599.35592454,0.00012311,2]
[361223823,1747361433366,-599.35592454,0.00012311,2]
[361223824,1747361433376,-599.35592454,0.00012311,2]
[361223825,1747361433386,-599.35592454,0.00012311,2]
[361223826,1747361433395,-599.35592454,0.00012311,2]
[361223827,1747361433404,-599.35592454,0.00012311,2]
[361223828,1747361433415,-599.35592454,0.00012311,2]
[361223829,1747361433424,-599.35592454,0.00012311,2]
[361223830,1747361433434,-599.35592454,0.00012311,2]
[361223831,1747361433444,-599.35592454,0.00012311,2]
[361223832,1747361433454,-599.35592454,0.00012311,2]
[361223833,1747361433464,-599.35592454,0.00012311,2]
[361223834,1747361433474,-599.35592454,0.00012311,2]
[361223835,1747361433483,-599.35592454,0.00012311,2]
[361223836,1747361433494,-599.35592454,0.00012311,2]
[361223837,1747361433504,-599.35592454,0.00012311,2]
[361223838,1747361433514,-599.35592454,0.00012311,2]
[361223839,1747361433524,-599.35592454,0.00012311,2]
[361223840,1747361433537,-599.35592454,0.00012311,2]
[361223841,1747361433546,-599.35592454,0.00012311,2]
[361223842,1747361433556,-599.35592454,0.00012311,2]
[361223843,1747361433565,-599.35592454,0.00012311,2]
[361223844,1747361433577,-599.35592454,0.00012311,2]
[361223845,1747361433587,-599.35592454,0.00012311,2]
[361223846,1747361433597,-599.35592454,0.00012311,2]
[361223847,1747361433607,-599.35592454,0.00012311,2]
[361223848,1747361433617,-599.35592454,0.00012311,2]
[361223849,1747361433627,-599.35592454,0.00012311,2]
[361223850,1747361433636,-599.35592454,0.00012311,2]
[361223851,1747361433646,-599.35592454,0.00012311,2]
[361223852,1747361433656,-1675.12296857,0.00012311,2]
[361223853,1747361433666,-1675.12296857,0.00012311,2]
[361223854,1747361433676,-1675.12296857,0.00012311,2]
[361223855,1747361433686,-1675.12296857,0.00012311,2]
[361223856,1747361433699,-1675.12296857,0.00012311,2]
[361223857,1747361433709,-1675.12296857,0.00012311,2]
[361223858,1747361433719,-1675.12296857,0.00012311,2]
[361223859,1747361433729,-1675.12296857,0.00012311,2]
[361223860,1747361433738,-1675.12296857,0.00012311,2]
[361223861,1747361433748,-1675.12296857,0.00012311,2]
[361223862,1747361433758,-1675.12296857,0.00012311,2]
[361223863,1747361433767,-1675.12296857,0.00012311,2]
[361223864,1747361433777,-1675.12296857,0.00012311,2]
[361223865,1747361433787,-1675.12296857,0.00012311,2]
[361223866,1747361433796,-1675.12296857,0.00012311,2]
[361223867,1747361433805,-1675.12296857,0.00012311,2]
[361223868,1747361433815,-1675.12296857,0.00012311,2]
[361223869,1747361433824,-1675.12296857,0.00012311,2]
[361223870,1747361433834,-1675.12296857,0.00012311,2]
[361223871,1747361433843,-1675.12296857,0.00012311,2]
[361223872,1747361433853,-1675.12296857,0.00012311,2]
[361223873,1747361433864,-1675.12296857,0.00012311,2]
[361223874,1747361433874,-1675.12296857,0.00012311,2]
[361223875,1747361433884,-1675.12296857,0.00012311,2]
[361223876,1747361433895,-1675.12296857,0.00012311,2]
[361223877,1747361433906,-1675.12296857,0.00012311,2]
[361223878,1747361433917,-1675.12296843,0.00012311,2]
[361223879,1747361433927,-50000.0,0.00012312,2]
[361223880,1747361433938,-173.224857,0.00012316,2]
[361223881,1747361433950,-173.224857,0.00012316,2]
[361223882,1747361433961,-173.224857,0.00012318,2]
[361223883,1747361433971,-173.224857,0.00012318,2]
[361223884,1747361433982,-1744.96,0.00012329,2]
[361223885,1747361433992,-1454.13,0.00012329,2]
[361223886,1747361434002,-1211.77,0.00012329,2]
[361223887,1747361434011,-1009.81,0.00012329,2]
[361223888,1747361434021,-841.51,0.00012329,2]
[361223889,1747361434030,-701.26,0.00012329,2]
[361223890,1747361434040,-584.38,0.00012329,2]
[361223891,1747361434050,-486.99,0.00012329,2]
[361223892,1747361434060,-405.82,0.00012329,2]
[361223893,1747361434070,-338.18,0.00012329,2]
[361223894,1747361434081,-281.82,0.00012329,2]
[361223895,1747361434091,-234.85,0.00012329,2]
[361223896,1747361434101,-195.71,0.00012329,2]
[361223897,1747361434111,-163.09,0.00012329,2]
[361223898,1747361434121,-815.48,0.00012329,2]
[361223899,1747361434131,-805.4209908,0.00012368,2]
[361223900,1747361434141,-282.29909374,0.000129,2]
[361223901,1747361434151,-282.29909371,0.000129,2]
[361223902,1747361434160,-282.29909371,0.0001298,2]